bitfinex/quotes_SOLUSD_20250718
["timestamp","ask_amount","ask_price","bid_price","bid_amount"]
[1752814461990,5.01843371,181.85,181.8,37.57843371]
[1752814462184,5.69843371,181.85,181.8,37.57843371]
[1752814462484,4.95843371,181.84,181.8,32.62]
[1752814462674,5.63843371,181.84,181.8,32.62]
[1752814463567,4.95843371,181.81,181.77,0.03]
[1752814463768,4.95843371,181.8,181.77,0.03]
[1752814463963,0.68,181.8,181.77,0.03]
[1752814464168,5.63843371,181.8,181.77,0.03]
[1752814464581,4.95843371,181.8,181.77,0.03]
[1752814464987,4.95843371,181.81,181.77,0.75]
[1752814465289,11.1385832,181.82,181.77,0.75]
[1752814465788,5.63843371,181.84,181.78,5.67843371]
[1752814465973,4.95843371,181.83,181.78,5.67843371]
[1752814466173,4.95843371,181.83,181.79,0.72]
[1752814467492,0.68,181.82,181.77,9.07127539]
[1752814467672,0.68,181.82,181.77,9.79127539]
[1752814467872,5.63843371,181.82,181.77,9.79127539]
[1752814468068,0.68,181.82,181.77,9.79127539]
[1752814468273,5.63843371,181.82,181.78,0.72]
[1752814468476,0.68,181.82,181.78,0.72]
[1752814469089,5.63843371,181.82,181.78,0.72]
[1752814469690,0.68,181.82,181.78,0.72]
[1752814470175,4.95843371,181.82,181.78,6.22115217]
[1752814470375,4.95843371,181.82,181.78,0.72]
[1752814472386,5.49972034,181.83,181.78,0.72]
[1752814472582,4.95843371,181.82,181.78,0.72]
[1752814473490,0.06,181.85,181.81,4.95843371]
[1752814473695,4.95843371,181.84,181.81,3.54]
[1752814473892,0.68,181.83,181.81,3.54]
[1752814474084,0.06,181.85,181.81,4.26]
[1752814474285,5.01843371,181.85,181.82,0.72]
[1752814474600,0.06,181.85,181.82,0.72]
[1752814475176,0.06,181.85,181.83,0.72]
[1752814475394,0.06,181.85,181.83,4.26]
[1752814476596,0.06,181.85,181.83,3.54]
[1752814476803,0.68,181.84,181.83,3.54]
[1752814477103,5.63843371,181.84,181.83,3.54]
[1752814478605,11.13783926,181.84,181.79,3.54]
[1752814478786,4.95843371,181.81,181.79,3.54]
[1752814479188,0.68,181.83,181.79,3.54]
[1752814479399,4.95843371,181.82,181.79,4.26]
[1752814479807,4.95843371,181.84,181.8,0.72]
[1752814480007,4.95843371,181.84,181.81,0.72]
[1752814480204,5.01843371,181.85,181.82,0.72]
[1752814480512,0.06,181.85,181.83,0.72]
[1752814481006,0.06,181.85,181.84,0.72]
[1752814483209,0.06,181.85,181.84,11.17777378]
[1752814483627,0.06,181.85,181.84,6.21934007]
[1752814484285,0.06,181.85,181.84,11.17777378]
[1752814485109,0.06,181.85,181.84,6.21934007]
[1752814485312,0.06,181.85,181.79,7.09624716]
[1752814485490,0.06,181.85,181.81,0.72]
[1752814485695,0.06,181.85,181.8,28.34]
[1752814485904,4.95843371,181.84,181.81,0.72]
[1752814486492,0.74,181.85,181.8,28.34]
[1752814486712,5.63843371,181.84,181.8,28.34]
[1752814486992,5.63843371,181.84,181.8,29.06]
[1752814487212,5.01843371,181.85,181.81,0.72]
[1752814487408,5.01843371,181.85,181.82,0.72]
[1752814487611,5.01843371,181.85,181.8,34.56043262]
[1752814487907,5.01843371,181.85,181.81,0.72]
[1752814488315,0.06,181.85,181.81,0.72]
[1752814488501,5.01843371,181.85,181.81,0.72]
[1752814488896,0.74,181.85,181.81,0.72]
[1752814489097,5.69843371,181.85,181.81,0.72]
[1752814489498,4.95843371,181.84,181.8,28.34]
[1752814489699,0.68,181.83,181.78,0.75]
[1752814490005,5.63843371,181.83,181.79,0.72]
[1752814490713,4.95843371,181.83,181.79,0.72]
[1752814490894,4.95843371,181.84,181.8,0.72]
[1752814491819,4.95843371,181.84,181.81,0.66]
[1752814492219,5.55909189,181.85,181.81,0.66]
[1752814492513,4.95843371,181.84,181.79,22.94547227]
[1752814492717,4.95843371,181.84,181.8,0.66]
[1752814494106,4.95843371,181.84,181.8,4.2]
[1752814494697,4.95843371,181.84,181.81,0.66]
[1752814495900,4.95843371,181.84,181.8,3.54]
[1752814496102,4.95843371,181.83,181.8,4.2]
[1752814496402,11.13785322,181.84,181.8,3.54]
[1752814496617,5.63843371,181.84,181.8,3.54]
[1752814496794,5.55913403,181.85,181.8,4.2]
[1752814496999,4.95843371,181.84,181.8,4.2]
[1752814497400,0.06,181.85,181.81,0.66]
[1752814498031,0.06,181.85,181.82,0.66]
[1752814498321,0.06,181.85,181.83,0.66]
[1752814500220,0.06,181.85,181.82,42.33809186]
[1752814500423,0.06,181.85,181.82,38.03965815]
[1752814500927,0.06,181.85,181.83,0.66]
[1752814501723,0.06,181.85,181.82,31.88]
[1752814501916,0.06,181.85,181.82,38.03989809]
[1752814502122,0.06,181.85,181.82,37.37989809]
[1752814502426,0.06,181.85,181.83,0.66]
[1752814503211,0.06,181.85,181.82,31.88]
[1752814503412,0.06,181.85,181.82,32.54]
[1752814504616,5.63843371,181.84,181.82,3.54]
[1752814504826,5.63843371,181.84,181.82,28.34]
[1752814505119,4.95843371,181.84,181.82,28.34]
[1752814505726,5.63843371,181.84,181.82,28.34]
[1752814505924,11.13794113,181.84,181.79,29.54]
[1752814506107,4.95843371,181.84,181.8,29.0]
[1752814506304,4.95843371,181.84,181.81,0.66]
[1752814506915,0.68,181.83,181.8,28.34]
[1752814507430,4.95843371,181.83,181.8,28.34]
[1752814507610,10.45784557,181.84,181.8,28.34]
[1752814507808,11.13784557,181.84,181.8,29.0]
[1752814508830,11.13784557,181.84,181.8,32.54]
[1752814509039,11.13784557,181.84,181.78,0.03]
[1752814509040,4.95843371,181.81,181.78,0.03]
[1752814509329,0.68,181.83,181.78,0.03]
[1752814509935,4.95843371,181.79,181.78,0.03]
[1752814510929,5.63843371,181.79,181.78,0.03]
[1752814512955,11.13928634,181.79,181.78,0.03]
[1752814515214,6.18085263,181.79,181.78,0.03]
[1752814515411,26.0,181.81,181.78,0.03]
[1752814515610,4.95843371,181.79,181.78,0.03]
[1752814515836,26.68,181.81,181.78,0.03]
[1752814516043,4.95843371,181.79,181.78,0.03]
[1752814516224,0.68,181.8,181.78,0.03]
[1752814516425,4.95843371,181.79,181.78,0.03]
[1752814517344,0.68,181.8,181.78,0.03]
[1752814517522,4.95843371,181.79,181.78,0.03]
[1752814521029,5.63843371,181.79,181.78,0.03]
[1752814521546,11.13928634,181.79,181.78,0.03]
[1752814522438,6.18085263,181.79,181.78,0.03]
[1752814522640,11.13928634,181.79,181.78,0.03]
[1752814523735,33.6813,181.78,181.75,81.977082]
[1752814523934,26.0,181.75,181.74,0.03]
[1752814524148,30.95843371,181.75,181.74,0.03]
[1752814524448,31.66843371,181.75,181.74,0.03]
[1752814525144,36.07650279,181.75,181.74,0.03]
[1752814525345,31.66843371,181.75,181.74,0.03]
[1752814525649,37.17049698,181.75,181.74,0.03]
[1752814527362,41.5337561,181.75,181.74,0.03]
[1752814527837,69.8737561,181.75,181.74,0.03]
[1752814528033,41.5337561,181.75,181.74,0.03]
[1752814528452,69.8737561,181.75,181.74,0.03]
[1752814531749,41.5337561,181.75,181.73,0.03]
[1752814532047,34.00843371,181.74,181.73,0.03]
[1752814532959,60.00843371,181.74,181.73,0.03]
[1752814533141,55.05,181.74,181.73,0.03]
[1752814533347,60.00843371,181.74,181.73,0.03]
[1752814533543,55.05,181.74,181.73,0.03]
[1752814533758,60.00843371,181.74,181.73,0.03]
[1752814534541,65.51079972,181.74,181.73,0.03]
[1752814536442,37.17079972,181.74,181.73,0.03]
[1752814536642,65.51079972,181.74,181.73,0.03]
[1752814537260,64.80079972,181.74,181.73,0.03]
[1752814537564,4.95843371,181.74,181.73,0.03]
[1752814538244,26.0,181.76,181.73,0.03]
[1752814538560,5.50223312,181.75,181.73,0.03]
[1752814538764,4.95843371,181.74,181.73,0.03]
[1752814539945,4.95843371,181.74,181.73,0.69]
[1752814540476,4.95843371,181.75,181.73,0.69]
[1752814541346,4.95843371,181.75,181.74,0.66]
[1752814541766,4.95843371,181.75,181.73,0.03]
[1752814541959,4.95843371,181.74,181.73,0.03]
[1752814542467,5.50206558,181.75,181.73,0.03]
[1752814542664,4.95843371,181.74,181.73,0.03]
[1752814543047,5.66843371,181.74,181.73,0.03]
[1752814543688,4.95843371,181.74,181.73,0.03]
[1752814544070,10.46079972,181.74,181.73,0.03]
[1752814544252,4.95843371,181.74,181.73,0.03]
[1752814544457,4.95843371,181.75,181.73,0.69]
[1752814544653,30.95843371,181.75,181.74,0.66]
[1752814544849,4.95843371,181.76,181.74,0.66]
[1752814545051,4.95843371,181.78,181.74,0.66]
[1752814545255,4.95843371,181.77,181.74,0.66]
[1752814546261,26.0,181.78,181.74,0.66]
[1752814546448,30.95843371,181.78,181.74,0.66]
[1752814546649,28.32,181.79,181.74,6.162325]
[1752814546858,4.95843371,181.78,181.75,0.66]
[1752814547347,26.0,181.8,181.75,5.61843371]
[1752814547563,26.0,181.8,181.76,0.66]
[1752814548162,26.0,181.8,181.76,5.61843371]
[1752814548363,26.0,181.8,181.77,0.66]
[1752814549693,30.95843371,181.8,181.77,0.66]
[1752814550185,26.0,181.8,181.77,0.66]
[1752814550367,30.95843371,181.8,181.77,0.66]
[1752814550672,4.95843371,181.78,181.75,4.26]
[1752814550877,4.95843371,181.78,181.76,0.66]
[1752814551259,32.21061162,181.8,181.76,0.66]
[1752814551465,4.95843371,181.78,181.76,0.66]
[1752814551683,4.95843371,181.79,181.76,0.66]
[1752814552072,31.50061162,181.8,181.75,3.6]
[1752814552073,5.65843371,181.78,181.75,3.6]
[1752814552285,31.50061162,181.8,181.75,3.6]
[1752814552286,4.95843371,181.77,181.75,3.6]
[1752814552589,4.95843371,181.77,181.75,4.26]
[1752814552963,5.50124882,181.78,181.75,4.26]
[1752814553357,10.45968253,181.78,181.76,0.66]
[1752814553553,10.45968253,181.78,181.75,3.6]
[1752814553858,4.95843371,181.79,181.76,0.66]
[1752814554370,4.95843371,181.79,181.77,0.66]
[1752814557086,0.06,181.8,181.77,0.66]
[1752814557664,0.06,181.8,181.77,5.61843371]
[1752814557974,0.06,181.8,181.78,0.66]
[1752814558363,0.06,181.8,181.76,14.05999045]
[1752814558564,0.06,181.8,181.79,0.66]
[1752814559065,0.06,181.8,181.77,0.66]
[1752814559470,5.01843371,181.8,181.77,0.66]
[1752814559677,5.01843371,181.8,181.76,9.10155674]
[1752814559892,0.06,181.8,181.78,0.66]
[1752814560191,0.06,181.8,181.76,9.10155674]
[1752814560192,0.06,181.8,181.77,5.50141068]
[1752814560394,0.06,181.8,181.79,0.66]
[1752814561190,0.06,181.8,181.76,14.06014347]
[1752814561370,5.01843371,181.8,181.76,4.26]
[1752814561688,0.06,181.8,181.77,0.66]
[1752814561884,0.06,181.8,181.78,0.66]
[1752814562486,4.95843371,181.79,181.76,4.26]
[1752814562690,4.95843371,181.79,181.76,0.66]
[1752814564279,5.56060516,181.8,181.76,0.66]
[1752814564682,4.95843371,181.79,181.76,0.66]
[1752814564998,4.95843371,181.79,181.77,0.66]
[1752814565374,5.56060516,181.8,181.75,0.66]
[1752814565574,6.26060516,181.8,181.75,0.66]
[1752814565774,6.26060516,181.8,181.76,0.66]
[1752814565989,5.56060516,181.8,181.77,0.66]
[1752814566186,5.56060516,181.8,181.74,3.63]
[1752814566187,4.95843371,181.78,181.74,3.63]
[1752814566389,4.95843371,181.76,181.74,0.69]
[1752814566806,0.7,181.79,181.74,0.69]
[1752814566987,4.95843371,181.76,181.74,0.69]
[1752814567401,4.95843371,181.75,181.74,0.03]
[1752814569101,4.95843371,181.76,181.74,0.69]
[1752814569602,5.50152079,181.77,181.74,0.03]
[1752814569603,4.95843371,181.75,181.74,0.03]
[1752814569790,6.20152079,181.77,181.74,0.03]
[1752814570104,4.95843371,181.75,181.74,0.03]
[1752814570599,18.76980884,181.8,181.74,0.03]
[1752814570600,26.0,181.79,181.74,5.64843371]
[1752814570900,4.95843371,181.78,181.74,0.03]
[1752814571089,4.95843371,181.75,181.74,0.03]
[1752814572695,0.7,181.77,181.74,0.69]
[1752814572696,5.5016594,181.77,181.74,0.69]
[1752814572900,10.46009311,181.77,181.74,0.69]
[1752814573299,5.5016594,181.77,181.74,0.03]
[1752814573497,4.95843371,181.76,181.74,0.03]
[1752814573879,10.46009311,181.77,181.74,0.69]
[1752814574084,11.16009311,181.77,181.74,0.03]
[1752814574397,4.95843371,181.76,181.74,0.03]
[1752814574807,10.46019789,181.76,181.74,0.03]
[1752814575106,5.50176418,181.76,181.74,0.69]
[1752814575612,10.46019789,181.76,181.74,0.69]
[1752814575992,10.46019789,181.76,181.74,0.03]
[1752814576909,5.65843371,181.75,181.74,0.03]
[1752814577385,64.76019789,181.76,181.74,0.03]
[1752814579598,38.76019789,181.76,181.74,0.03]
[1752814580183,10.46019789,181.76,181.74,0.03]
[1752814580609,5.50176418,181.76,181.74,0.69]
[1752814580813,5.50154785,181.77,181.74,0.69]
[1752814580986,10.45998156,181.77,181.74,0.69]
[1752814582201,33.80119913,181.78,181.74,0.03]
[1752814582391,4.95843371,181.78,181.75,0.7]
[1752814582594,31.56091904,181.79,181.76,0.7]
[1752814583418,36.51935275,181.79,181.76,0.7]
[1752814584082,36.51935275,181.79,181.74,0.73]
[1752814584287,36.51935275,181.79,181.75,0.7]
[1752814585409,36.51935275,181.79,181.74,0.03]
[1752814585600,26.06,181.79,181.75,0.7]
[1752814585799,26.06,181.79,181.76,0.7]
[1752814586328,31.01843371,181.79,181.76,0.7]
[1752814586515,26.06,181.79,181.76,0.7]
[1752814586697,31.01843371,181.79,181.76,0.7]
[1752814587122,31.01843371,181.79,181.76,6.20159745]
[1752814587123,0.06,181.79,181.76,6.20159745]
[1752814587313,0.06,181.79,181.77,0.7]
[1752814587613,0.06,181.79,181.77,5.65843371]
[1752814587911,0.06,181.79,181.78,0.7]
[1752814590517,0.06,181.79,181.76,10.46003116]
[1752814590698,0.06,181.79,181.77,0.7]
[1752814592615,5.0,181.78,181.77,0.7]
[1752814592931,5.0,181.78,181.77,5.65843371]
[1752814593101,5.0,181.78,181.77,0.7]
[1752814593410,9.95843371,181.78,181.74,4.33]
[1752814593615,4.95843371,181.76,181.74,0.73]
[1752814593800,4.95843371,181.77,181.74,0.73]
[1752814593997,4.95843371,181.77,181.75,0.7]
[1752814594199,10.50124701,181.78,181.75,0.7]
[1752814594705,15.45968072,181.78,181.75,0.7]
[1752814595202,5.0,181.78,181.76,0.7]
[1752814595605,5.0,181.78,181.77,0.7]
[1752814601013,16.14963218,181.78,181.74,3.63]
[1752814601208,4.95843371,181.77,181.74,3.63]
[1752814601721,5.64843371,181.77,181.74,3.63]
[1752814602227,10.46008845,181.77,181.74,3.63]
[1752814603329,5.0,181.78,181.75,0.7]
[1752814604031,5.0,181.78,181.74,3.63]
[1752814604330,5.0,181.78,181.76,0.7]
[1752814604721,5.0,181.78,181.77,0.7]
[1752814608636,5.0,181.78,181.77,5.65843371]
[1752814609022,5.0,181.78,181.77,0.7]
[1752814612442,5.0,181.78,181.77,4.3]
[1752814615650,5.0,181.78,181.77,4.29]
[1752814616952,5.0,181.78,181.77,3.6]
[1752814617654,5.0,181.78,181.77,4.29]
[1752814617943,15.45958895,181.78,181.77,3.6]
[1752814618149,16.10958895,181.78,181.77,3.6]
[1752814618353,16.10958895,181.78,181.74,29.02]
[1752814618354,10.50115524,181.78,181.74,32.62]
[1752814618952,9.95843371,181.78,181.74,31.93]
[1752814619248,9.95843371,181.78,181.75,0.69]
[1752814619430,5.0,181.78,181.75,0.69]
[1752814619947,5.0,181.78,181.74,37.43230301]
[1752814620146,5.0,181.78,181.76,0.69]
[1752814620657,5.0,181.78,181.75,4.95843371]
[1752814620842,5.0,181.78,181.77,0.69]
[1752814621031,5.06,181.78,181.77,0.69]
[1752814623435,5.06,181.78,181.77,6.19145788]
[1752814623641,5.06,181.78,181.77,11.14989159]
[1752814624147,5.06,181.78,181.77,0.69]
[1752814624336,5.06,181.78,181.77,4.29]
[1752814624843,5.06,181.78,181.77,14.74989159]
[1752814625154,0.06,181.82,181.81,42.78468397]
[1752814625336,0.06,181.82,181.81,80.28311768]
[1752814626154,0.06,181.82,181.81,85.78336519]
[1752814629070,0.06,181.82,181.81,80.82493148]
[1752814629365,0.06,181.82,181.81,62.85843371]
[1752814629569,0.06,181.82,181.81,36.85843371]
[1752814629737,0.71,181.82,181.81,28.3]
[1752814630657,0.06,181.82,181.81,28.3]
[1752814631069,0.06,181.82,181.81,33.25843371]
[1752814631272,0.06,181.82,181.81,39.39868122]
[1752814631771,0.06,181.82,181.81,56.18336519]
[1752814633040,0.06,181.82,181.81,59.78336519]
[1752814636740,0.06,181.85,181.84,46.38468396]
[1752814636941,0.1,181.86,181.85,16.78468397]
[1752814637137,0.1,181.86,181.85,25.98311767]
[1752814637138,1e-08,181.86,181.85,25.98311767]
[1752814637781,1e-08,181.86,181.85,31.48215533]
[1752814638149,1e-08,181.87,181.85,49.50075533]
[1752814638348,1e-08,181.87,181.86,76.66311768]
[1752814640078,1e-08,181.87,181.86,82.16185297]
[1752814642084,0.65,181.93,181.91,5.4972239]
[1752814642256,0.65,181.93,181.92,28.28]
[1752814644666,0.06,181.95,181.92,42.51535499]
[1752814645079,0.06,181.95,181.92,8.63692128]
[1752814645277,0.7,181.94,181.93,28.28]
[1752814645793,0.06,181.95,181.93,33.23843371]
[1752814645965,0.76,181.95,181.93,33.23843371]
[1752814647186,0.76,181.95,181.93,36.37843369]
[1752814647892,0.76,181.95,181.93,31.41999998]
[1752814648202,0.7,181.94,181.93,31.41999998]
[1752814648367,0.7,181.94,181.93,36.37843369]
[1752814648560,0.06,181.95,181.93,41.87502741]
[1752814650764,0.06,181.95,181.93,42.51502741]
[1752814650993,0.06,181.95,181.94,4.95843371]
[1752814651865,0.06,181.95,181.94,19.92468395]
[1752814652068,0.76,181.95,181.94,3.13999998]
[1752814652280,5.71843371,181.95,181.9,3.13999998]
[1752814652478,0.7,181.94,181.91,28.28]
[1752814652685,5.65843371,181.94,181.91,28.28]
[1752814652993,0.7,181.93,181.91,28.28]
[1752814653676,5.55620413,181.95,181.91,28.28]
[1752814653987,0.7,181.92,181.91,28.28]
[1752814654782,0.76,181.95,181.91,33.23843371]
[1752814654990,0.76,181.95,181.92,4.95843371]
[1752814655290,0.76,181.95,181.93,28.28]
[1752814655683,0.06,181.95,181.94,4.95843371]
[1752814656808,0.06,181.95,181.94,10.45475117]
[1752814657797,0.06,181.95,181.94,13.59475115]
[1752814658595,0.06,181.95,181.94,31.01943512]
[1752814661389,0.06,181.95,181.94,26.06100141]
[1752814661593,0.06,181.95,181.94,31.01943512]
[1752814662810,0.7,181.99,181.95,3.07999998]
[1752814663017,0.7,181.99,181.96,33.21843371]
[1752814663596,0.7,181.98,181.96,33.21843371]
[1752814664014,0.7,181.98,181.97,5.49541133]
[1752814665419,0.06,181.99,181.97,5.49541133]
[1752814665584,0.06,181.99,181.98,28.26]
[1752814665988,0.76,181.99,181.98,28.26]
[1752814666638,0.06,181.99,181.98,41.79354304]
[1752814666790,0.06,181.99,181.98,36.83510933]
[1752814666988,0.06,181.99,181.98,13.53354304]
[1752814667188,0.06,181.99,181.98,3.07999998]
[1752814667189,0.76,181.99,181.98,3.07999998]
[1752814668286,0.76,181.99,181.98,8.57510933]
[1752814669398,0.76,181.99,181.98,31.33999998]
[1752814670213,0.06,181.99,181.98,13.53354304]
[1752814670594,0.06,181.99,181.98,8.57510933]
[1752814670796,5.71843371,181.99,181.97,3.07999998]
[1752814670994,0.7,181.98,181.97,3.07999998]
[1752814675210,0.06,181.99,181.97,8.57541131]
[1752814675604,0.06,181.99,181.97,41.79384502]
[1752814676199,0.72,181.99,181.97,36.83541131]
[1752814677302,0.66,181.98,181.97,36.83541131]
[1752814678000,0.66,181.98,181.97,31.33999998]
[1752814679224,0.66,181.98,181.97,36.83541131]
[1752814680619,0.66,181.98,181.97,8.57541131]
[1752814681020,0.06,181.99,181.97,8.57541131]
[1752814681415,0.72,181.99,181.97,8.57541131]
[1752814684121,0.06,181.99,181.97,13.53384502]
[1752814684410,0.06,181.99,181.98,28.26]
[1752814685237,0.06,181.99,181.98,33.75510935]
[1752814686106,0.06,181.99,181.98,59.21822701]
[1752814686713,0.06,181.99,181.98,58.57822701]
[1752814687032,0.28,182.03,181.98,59.28822701]
[1752814687327,0.28,182.03,181.99,5.66843371]
[1752814687627,0.28,182.03,182.0,28.26]
[1752814687829,4.95843371,182.04,181.98,8.57510933]
[1752814688009,4.95843371,182.01,181.98,8.57510933]
[1752814688207,4.95843371,182.02,181.98,8.57510933]
[1752814688512,4.95843371,182.03,181.98,8.57510933]
[1752814688931,5.61843371,182.02,181.99,28.26]
[1752814689139,0.66,182.01,181.99,28.26]
[1752814689511,0.66,182.01,181.99,33.75480199]
[1752814690822,0.66,182.01,181.99,28.26]
[1752814691432,0.66,182.03,181.99,33.75466535]
[1752814691646,5.61843371,182.03,181.99,33.75466535]
[1752814691829,0.66,182.02,181.99,33.75466535]
[1752814692141,5.61843371,182.02,181.99,28.26]
[1752814692433,0.66,182.01,181.99,31.33999998]
[1752814695540,0.66,182.01,181.99,28.26]
[1752814695713,0.66,182.03,181.99,36.83457322]
[1752814695917,0.66,182.05,182.0,0.71]
[1752814696234,4.95843371,182.04,181.99,36.83457322]
[1752814696435,0.66,182.03,181.99,36.83457322]
[1752814696736,0.66,182.03,181.99,37.54457322]
[1752814697816,0.66,182.03,181.99,42.50300693]
[1752814701424,0.66,182.03,182.0,5.49428977]
[1752814701626,4.95843371,182.05,182.01,28.24]
[1752814701923,0.7,182.04,182.01,28.24]
[1752814702326,5.75843371,182.06,182.02,0.72]
[1752814702523,5.75843371,182.06,182.03,28.24]
[1752814702726,0.2,182.05,182.03,28.24]
[1752814704034,4.95843371,182.05,182.03,28.24]
[1752814704242,4.95843371,182.05,182.02,3.07999998]
[1752814704429,4.95843371,182.03,182.02,3.07999998]
[1752814704939,5.42843371,182.03,182.02,3.07999998]
[1752814705718,10.92203366,182.03,182.02,3.07999998]
[1752814706448,5.96359995,182.03,182.02,3.07999998]
[1752814706741,10.92203366,182.03,182.02,3.07999998]
[1752814707148,10.98203366,182.03,181.98,3.79999998]
[1752814707330,4.95843371,182.01,181.98,3.79999998]
[1752814707823,0.47,182.02,181.98,3.79999998]
[1752814708019,0.06,182.03,181.99,33.91843371]
[1752814708322,0.06,182.03,182.0,5.67843371]
[1752814708721,0.06,182.03,182.01,0.72]
[1752814709136,0.06,182.03,181.99,33.73452673]
[1752814709340,0.06,182.03,182.0,0.72]
[1752814709928,0.06,182.03,181.99,38.69296044]
[1752814710139,0.06,182.03,182.01,0.72]
[1752814711021,0.06,182.03,181.99,33.73452673]
[1752814711421,0.06,182.03,182.0,0.72]
[1752814712319,0.06,182.03,182.01,21.74311768]
[1752814712519,0.06,182.03,182.02,33.91843371]
[1752814712934,0.06,182.03,182.02,28.96]
[1752814713116,0.06,182.03,182.02,34.45390176]
[1752814713723,0.06,182.03,182.0,5.49441707]
[1752814713930,0.06,182.03,182.01,28.96]
[1752814714734,0.06,182.03,182.01,28.24]
[1752814714933,0.76,182.03,182.01,28.24]
[1752814715640,0.06,182.03,182.01,28.24]
[1752814716146,0.06,182.03,182.01,28.96]
[1752814716452,0.06,182.03,182.02,0.72]
[1752814717143,0.06,182.03,182.02,6.21390176]
[1752814717533,0.06,182.03,182.02,0.72]
[1752814718932,0.06,182.03,182.02,9.29390174]
[1752814719449,0.06,182.03,182.02,3.79999998]
[1752814719642,0.06,182.03,182.02,20.58468395]
[1752814719836,0.06,182.03,182.02,31.03701942]
[1752814720439,0.1,182.06,182.03,16.78468397]
[1752814720741,0.1,182.06,182.04,28.24]
[1752814720946,0.1,182.06,182.05,22.27768039]
[1752814721246,0.1,182.06,182.05,22.99768039]
[1752814721449,0.1,182.06,182.05,22.27768039]
[1752814721650,0.1,182.06,182.05,0.72]
[1752814722948,0.1,182.06,182.05,26.07768037]
[1752814723153,0.1,182.06,182.05,48.82468395]
[1752814723533,0.1,182.06,182.05,59.27611408]
[1752814726028,0.1,182.06,182.05,3.07999998]
[1752814726441,5.75843371,182.06,182.05,3.07999998]
[1752814727039,0.1,182.06,182.05,32.07999998]
[1752814727227,0.1,182.06,182.05,54.35768037]
[1752814727427,0.1,182.06,182.05,59.31611408]
[1752814728636,0.1,182.06,182.05,31.35999998]
[1752814729336,0.1,182.06,182.05,32.07999998]
[1752814729949,0.1,182.06,182.05,37.5729964]
[1752814730350,0.1,182.06,182.05,32.07999998]
[1752814730952,0.1,182.06,182.05,37.5729964]
[1752814732544,0.1,182.06,182.05,42.53143011]
[1752814735045,0.1,182.06,182.05,3.07999998]
[1752814735249,0.1,182.06,182.05,31.31999998]
[1752814736447,0.79,182.06,182.05,3.07999998]
[1752814737545,11.24112842,182.06,182.05,3.07999998]
[1752814738268,11.24112842,182.06,182.02,0.03]
[1752814738454,4.95843371,182.04,182.02,0.03]
[1752814738856,5.64843371,182.03,182.02,0.03]
[1752814739071,5.59269471,182.06,182.02,0.03]
[1752814739270,0.1,182.06,182.02,3.10999998]
[1752814739457,0.1,182.06,182.03,28.89]
[1752814739641,0.1,182.06,182.03,28.22]
[1752814739847,0.1,182.06,182.03,33.71353628]
[1752814739848,0.79,182.06,182.03,33.71353628]
[1752814740046,0.1,182.06,182.03,34.38353628]
[1752814742176,0.1,182.06,182.04,0.67]
[1752814742474,0.1,182.06,182.04,3.74999998]
[1752814743876,0.1,182.06,182.04,9.24328076]
[1752814744556,0.1,182.06,182.05,22.41311768]
[1752814744771,0.1,182.06,182.05,50.65311768]